fUSD/lending_fUSD_20250107
["ID","MTS","AMOUNT","RATE_DAILY","PERIOD"]
[348043078,1736273462554,-378.9797667,0.00011782,2]
[348043079,1736273462564,-500.0,0.00011782,2]
[348043080,1736273462575,-500.0,0.00011782,2]
[348043081,1736273462585,-500.0,0.00011782,2]
[348043082,1736273462595,-500.0,0.00011782,2]
[348043083,1736273462605,-500.0,0.00011782,2]
[348043084,1736273462614,-500.0,0.00011782,2]
[348043085,1736273462624,-622.04261867,0.00011782,2]
[348043086,1736273462635,-500.0,0.00011782,2]
[348043087,1736273462644,-2421.61,0.00011782,2]
[348043088,1736273462655,-500.0,0.00011782,2]
[348043089,1736273462665,-1488.19,0.00011782,2]
[348043090,1736273462675,-927.8,0.00011782,2]
[348043091,1736273462685,-512.66,0.00011782,2]
[348043092,1736273462697,-500.0,0.00011782,2]
[348043093,1736273462707,-1731.79,0.00011782,2]
[348043094,1736273462716,-1587.65,0.00011782,2]
[348043095,1736273462726,-500.0,0.00011782,2]
[348043096,1736273462735,-828.69,0.00011782,2]
[348043097,1736273462745,-500.0,0.00011782,2]
[348043098,1736273462755,-500.0,0.00011782,2]
[348043099,1736273462765,-1190.08,0.00011782,2]
[348043100,1736273462775,-649.3,0.00011782,2]
[348043101,1736273462784,-500.0,0.00011782,2]
[348043102,1736273462795,-500.0,0.00011782,2]
[348043103,1736273462804,-500.0,0.00011782,2]
[348043104,1736273462814,-500.0,0.00011782,2]
[348043105,1736273462824,-780.98,0.00011782,2]
[348043106,1736273462834,-500.0,0.00011782,2]
[348043107,1736273462844,-500.0,0.00011783,2]
[348043108,1736273462853,-852.67,0.00011783,2]
[348043109,1736273462863,-540.13,0.00011783,2]
[348043110,1736273462872,-500.0,0.00011783,2]
[348043111,1736273462883,-747.89,0.00011783,2]
[348043112,1736273462892,-1907.03,0.00011783,2]
[348043113,1736273462902,-906.47,0.00011783,2]
[348043114,1736273462912,-500.0,0.00011783,2]
[348043115,1736273462922,-267.458645,0.00011783,2]
[348043116,1736273462932,-2211.29,0.00011783,2]
[348043117,1736273462945,-334.479534,0.00011783,2]
[348043118,1736273462955,-500.0,0.00011783,2]
[348043119,1736273462965,-500.0,0.00011783,2]
[348043120,1736273462975,-500.0,0.00011783,2]
[348043121,1736273462985,-2702.59,0.00011783,2]
[348043122,1736273462995,-660.43,0.00011783,2]
[348043123,1736273463004,-500.0,0.00011783,2]
[348043124,1736273463014,-500.0,0.00011783,2]
[348043125,1736273463024,-500.0,0.00011783,2]
[348043126,1736273463034,-500.0,0.00011783,2]
[348043127,1736273463044,-500.0,0.00011783,2]
[348043128,1736273463055,-806.56,0.00011783,2]
[348043129,1736273463066,-521.17,0.00011783,2]
[348043130,1736273463078,-500.0,0.00011783,2]
[348043131,1736273463090,-500.0,0.00011783,2]
[348043132,1736273463101,-500.0,0.00011783,2]
[348043133,1736273463112,-500.0,0.00011783,2]
[348043134,1736273463122,-500.0,0.00011783,2]
[348043135,1736273463133,-500.0,0.00011783,2]
[348043136,1736273463144,-500.0,0.00011783,2]
[348043137,1736273463154,-150.19472254,0.00011783,2]
[348043138,1736273463164,-500.0,0.00011783,2]
[348043139,1736273463174,-230.0446744,0.00011783,2]
[348043140,1736273463185,-500.0,0.00011783,2]
[348043141,1736273463197,-500.0,0.00011783,2]
[348043142,1736273463207,-500.0,0.00011783,2]
[348043143,1736273463216,-500.0,0.00011783,2]
[348043144,1736273463226,-500.0,0.00011783,2]
[348043145,1736273463237,-500.0,0.00011783,2]
[348043146,1736273463248,-500.0,0.00011783,2]
[348043147,1736273463259,-500.0,0.00011783,2]
[348043148,1736273463269,-894.83,0.00011783,2]
[348043149,1736273463280,-500.0,0.00011783,2]
[348043150,1736273463290,-500.0,0.00011783,2]
[348043151,1736273463465,-958.69,0.00011783,2]
[348043152,1736273463476,-500.0,0.00011783,2]
[348043153,1736273463486,-500.0,0.00011783,2]
[348043154,1736273463496,-1016.91,0.00011783,2]
[348043155,1736273463506,-529.41,0.00011783,2]
[348043156,1736273463516,-500.0,0.00011783,2]
[348043157,1736273463526,-500.0,0.00011783,2]
[348043158,1736273463536,-746.53,0.00011783,2]
[348043159,1736273463545,-500.0,0.00011783,2]
[348043160,1736273463555,-500.0,0.00011783,2]
[348043161,1736273463566,-500.0,0.00011783,2]
[348043162,1736273463577,-500.0,0.00011783,2]
[348043163,1736273463589,-500.0,0.00011783,2]
[348043164,1736273463598,-500.0,0.00011783,2]
[348043165,1736273463608,-586.12,0.00011783,2]
[348043166,1736273463618,-500.0,0.00011783,2]
[348043167,1736273463628,-1486.69,0.00011783,2]
[348043168,1736273463637,-500.0,0.00011783,2]
[348043169,1736273463648,-511.25,0.00011783,2]
[348043170,1736273463657,-500.0,0.00011783,2]
[348043171,1736273463667,-500.0,0.00011783,2]
[348043172,1736273463677,-500.0,0.00011783,2]
[348043173,1736273463687,-1009.73,0.00011783,2]
[348043174,1736273463698,-500.0,0.00011783,2]
[348043175,1736273463707,-500.0,0.00011783,2]
[348043176,1736273463717,-507.98,0.00011783,2]
[348043177,1736273463727,-500.0,0.00011783,2]
[348043178,1736273463738,-500.0,0.00011783,2]
[348043179,1736273463748,-1812.89,0.00011783,2]
[348043180,1736273463758,-500.0,0.00011783,2]
[348043181,1736273463769,-511.1,0.00011783,2]
[348043182,1736273463780,-500.0,0.00011783,2]
[348043183,1736273463790,-500.0,0.00011783,2]
[348043184,1736273463801,-292.11488284,0.00011783,2]
[348043185,1736273463811,-970.96,0.00011783,2]
[348043186,1736273463820,-1670.41,0.00011783,2]
[348043187,1736273463830,-500.0,0.00011783,2]
[348043188,1736273463840,-500.0,0.00011783,2]
[348043189,1736273463851,-573.58,0.00011783,2]
[348043190,1736273463861,-150.0,0.00011783,2]
[348043191,1736273463871,-681.81,0.00011784,2]
[348043192,1736273463881,-1286.85,0.00011784,2]
[348043193,1736273463891,-1070.32,0.00011784,2]
[348043194,1736273463901,-1553.71,0.00011784,2]
[348043195,1736273463912,-200.0,0.000118,2]
[348043196,1736273463922,-1200.0,0.000118,4]
[348043197,1736273463932,-150.0,0.00011814,2]
[348043198,1736273463942,-150.0,0.00011833,2]
[348043199,1736273463951,-150.0,0.00011844,2]
[348043200,1736273463962,-179.748,0.00011857,2]
[348043201,1736273463971,-3840.583,0.00011857,2]
[348043202,1736273463982,-1202.54,0.00011858,2]
[348043203,1736273463992,-3513.1337967,0.00011888,2]
[348043204,1736273464003,-1541.0,0.000119,4]
[348043205,1736273464013,-150.0,0.00011906,2]
[348043206,1736273464024,-446.74,0.00011913,2]
[348043207,1736273464034,-150.0,0.00011923,2]
[348043208,1736273464044,-2866.24,0.00011957,2]
[348043209,1736273464054,-2167.62,0.00011957,2]
[348043210,1736273464065,-2167.62,0.00011957,2]
[348043211,1736273464075,-940.7,0.00011957,2]
[348043212,1736273464085,-1195.38,0.00011957,2]
[348043213,1736273464095,-1064.55,0.00011957,2]
[348043214,1736273464105,-679.41,0.00011957,2]
[348043215,1736273464115,-791.61,0.00011957,2]
[348043216,1736273464125,-1611.09,0.00011957,2]
[348043217,1736273464135,-1146.92,0.00011958,2]
[348043218,1736273464145,-702.63,0.00011958,2]
[348043219,1736273464155,-782.17,0.00011958,2]
[348043220,1736273464165,-500.0,0.00011958,2]
[348043221,1736273464175,-882.66,0.00011958,2]
[348043222,1736273464186,-6296.18,0.00011958,2]
[348043223,1736273464197,-1014.88,0.00011958,2]
[348043224,1736273464206,-696.06,0.00011958,2]
[348043225,1736273464216,-842.54,0.00011958,2]
[348043226,1736273464227,-936.2,0.00011958,2]
[348043227,1736273464236,-150.0,0.00011967,2]
[348043228,1736273464246,-150.0,0.00011967,2]
[348043229,1736273464255,-11869.0,0.00011973,2]
[348043230,1736273464265,-1575.0,0.00011973,2]
[348043231,1736273464275,-513.0,0.00011999,2]
[348043232,1736273464284,-649.3,0.00011999,2]
[348043233,1736273464295,-649.3,0.00011999,2]
[348043234,1736273464305,-649.3,0.00011999,2]
[348043235,1736273464315,-649.3,0.00011999,2]
[348043236,1736273464328,-28954.9537357,0.00012,7]
[348043237,1736273464338,-995040.2620826,0.00012,2]
[348043238,1736273464348,-23128.0,0.00012,2]
[348043239,1736273464358,-11247.36935842,0.00012,2]
[348043240,1736273464368,-391.460528,0.00012008,2]
[348043241,1736273464377,-150.0,0.00012028,2]
[348043242,1736273464387,-717.4464,0.00012032,2]
[348043243,1736273464398,-152.0,0.0001204,9]
[348043244,1736273464408,-153.0,0.00012051,2]
[348043245,1736273464419,-200.0,0.00012055,2]
[348043246,1736273464428,-722.03,0.00012055,2]
[348043247,1736273464438,-1360.64,0.00012055,2]
[348043248,1736273464449,-2967.63,0.00012055,2]
[348043249,1736273464460,-500.0,0.00012055,2]
[348043250,1736273464470,-667.38,0.00012055,2]
[348043251,1736273464480,-500.0,0.00012055,2]
[348043252,1736273464491,-964.24,0.00012055,2]
[348043253,1736273464501,-1673.41,0.00012055,2]
[348043254,1736273464511,-709.28,0.00012055,2]
[348043255,1736273464521,-500.0,0.00012055,2]
[348043256,1736273464531,-874.12,0.00012055,2]
[348043257,1736273464542,-858.92,0.00012055,2]
[348043258,1736273464551,-500.0,0.00012056,2]
[348043259,1736273464562,-500.0,0.00012056,2]
[348043260,1736273464572,-563.22,0.00012056,2]
[348043261,1736273464582,-155.32912995,0.00012056,2]
[348043262,1736273464592,-500.0,0.00012056,2]
[348043263,1736273464601,-500.0,0.00012056,2]
[348043264,1736273464611,-500.0,0.00012056,2]
[348043265,1736273464620,-500.0,0.00012056,2]
[348043266,1736273464629,-500.0,0.00012056,2]
[348043267,1736273464639,-500.0,0.00012056,2]
[348043268,1736273464649,-2421.61,0.00012056,2]
[348043269,1736273464660,-500.0,0.00012056,2]
[348043270,1736273464669,-1488.19,0.00012056,2]
[348043271,1736273464679,-927.8,0.00012056,2]
[348043272,1736273464689,-512.66,0.00012056,2]
[348043273,1736273464700,-500.0,0.00012056,2]
[348043274,1736273464710,-1731.79,0.00012056,2]
[348043275,1736273464720,-1587.65,0.00012056,2]
[348043276,1736273464730,-500.0,0.00012056,2]
[348043277,1736273464739,-828.69,0.00012056,2]
[348043278,1736273464750,-500.0,0.00012056,2]
[348043279,1736273464759,-500.0,0.00012056,2]
[348043280,1736273464769,-1190.08,0.00012056,2]
[348043281,1736273464779,-500.0,0.00012056,2]
[348043282,1736273464788,-500.0,0.00012056,2]
[348043283,1736273464797,-500.0,0.00012056,2]
[348043284,1736273464806,-500.0,0.00012056,2]
[348043285,1736273464815,-780.98,0.00012056,2]
[348043286,1736273464824,-500.0,0.00012056,2]
[348043287,1736273464833,-500.0,0.00012057,2]
[348043288,1736273464843,-852.67,0.00012057,2]
[348043289,1736273464852,-540.13,0.00012057,2]
[348043290,1736273464863,-747.89,0.00012057,2]
[348043291,1736273464872,-1907.03,0.00012057,2]
[348043292,1736273464882,-906.47,0.00012057,2]
[348043293,1736273464890,-500.0,0.00012057,2]
[348043294,1736273464900,-267.458645,0.00012057,2]
[348043295,1736273464909,-2211.29,0.00012057,2]
[348043296,1736273464919,-334.479534,0.00012057,2]
[348043297,1736273464929,-500.0,0.00012057,2]
[348043298,1736273464938,-500.0,0.00012057,2]
[348043299,1736273464949,-500.0,0.00012057,2]
[348043300,1736273464959,-2702.59,0.00012057,2]
[348043301,1736273464968,-660.43,0.00012057,2]
[348043302,1736273464978,-151.98,0.00012057,2]
[348043303,1736273464988,-500.0,0.00012057,2]
[348043304,1736273464998,-500.0,0.00012057,2]
[348043305,1736273465007,-500.0,0.00012057,2]
[348043306,1736273465017,-500.0,0.00012057,2]
[348043307,1736273465026,-806.56,0.00012057,2]
[348043308,1736273465035,-521.17,0.00012057,2]
[348043309,1736273465044,-500.0,0.00012057,2]
[348043310,1736273465054,-500.0,0.00012057,2]
[348043311,1736273465064,-154.51,0.00012057,2]
[348043312,1736273465074,-500.0,0.00012057,2]
[348043313,1736273465085,-500.0,0.00012057,2]
[348043314,1736273465095,-500.0,0.00012057,2]
[348043315,1736273465105,-500.0,0.00012057,2]
[348043316,1736273465114,-500.0,0.00012057,2]
[348043317,1736273465124,-500.0,0.00012057,2]
[348043318,1736273465133,-500.0,0.00012057,2]
[348043319,1736273465142,-500.0,0.00012057,2]
[348043320,1736273465152,-500.0,0.00012057,2]
[348043321,1736273465162,-500.0,0.00012057,2]
[348043322,1736273465171,-500.0,0.00012057,2]
[348043323,1736273465181,-500.0,0.00012057,2]
[348043324,1736273465190,-500.0,0.00012057,2]
[348043325,1736273465202,-894.83,0.00012057,2]
[348043326,1736273465211,-500.0,0.00012057,2]
[348043327,1736273465222,-500.0,0.00012057,2]
[348043328,1736273465231,-500.0,0.00012057,2]
[348043329,1736273465241,-500.0,0.00012057,2]
[348043330,1736273465250,-1016.91,0.00012057,2]
[348043331,1736273465260,-529.41,0.00012057,2]
[348043332,1736273465271,-500.0,0.00012057,2]
[348043333,1736273465280,-500.0,0.00012057,2]
[348043334,1736273465290,-746.53,0.00012057,2]
[348043335,1736273465300,-531.02140276,0.00012057,2]
[348043336,1736273465309,-500.0,0.00012057,2]
[348043337,1736273465319,-500.0,0.00012057,2]
[348043338,1736273465331,-500.0,0.00012057,2]
[348043339,1736273465341,-500.0,0.00012057,2]
[348043340,1736273465350,-500.0,0.00012057,2]
[348043341,1736273465359,-328.8688233,0.00012057,2]
[348043342,1736273465370,-1486.69,0.00012057,2]
[348043343,1736273465379,-500.0,0.00012057,2]
[348043344,1736273465389,-511.25,0.00012057,2]
[348043345,1736273465400,-330.08332179,0.00012057,2]
[348043346,1736273465410,-500.0,0.00012057,2]
[348043347,1736273465419,-500.0,0.00012057,2]
[348043348,1736273465429,-1009.73,0.00012057,2]
[348043349,1736273465439,-500.0,0.00012057,2]
[348043350,1736273465449,-500.0,0.00012057,2]
[348043351,1736273465458,-507.98,0.00012057,2]
[348043352,1736273465468,-500.0,0.00012057,2]
[348043353,1736273465478,-500.0,0.00012057,2]
[348043354,1736273465487,-1812.89,0.00012057,2]
[348043355,1736273465497,-500.0,0.00012057,2]
[348043356,1736273465507,-511.1,0.00012057,2]
[348043357,1736273465516,-500.0,0.00012057,2]
[348043358,1736273465526,-500.0,0.00012057,2]
[348043359,1736273465535,-970.96,0.00012057,2]
[348043360,1736273465545,-1670.41,0.00012057,2]
[348043361,1736273465555,-500.0,0.00012057,2]
[348043362,1736273465565,-500.0,0.00012057,2]
[348043363,1736273465575,-573.58,0.00012057,2]
[348043364,1736273465587,-681.81,0.00012058,2]
[348043365,1736273465596,-1286.85,0.00012058,2]
[348043366,1736273465606,-1070.32,0.00012058,2]
[348043367,1736273465615,-1553.71,0.00012058,2]
[348043368,1736273465625,-150.0,0.00012059,2]
[348043369,1736273465634,-1500.0,0.0001208,2]
[348043370,1736273465643,-621.5242537,0.00012082,2]
[348043371,1736273465653,-150.0,0.0001209,2]
[348043372,1736273465663,-150.0,0.00012099,2]
[348043373,1736273465673,-1500.0,0.00012112,2]
[348043374,1736273465682,-150.0,0.00012121,2]
[348043375,1736273465692,-513.0,0.00012136,2]
[348043376,1736273465703,-150.0,0.00012147,2]
[348043377,1736273465712,-1500.0,0.00012148,2]
[348043378,1736273465722,-150.0,0.00012151,2]
[348043379,1736273465731,-369.26,0.00012157,2]
[348043380,1736273465740,-1055.8392632,0.00012161,2]
[348043381,1736273465749,-1500.0,0.00012175,2]
[348043382,1736273465759,-7742.82965057,0.0001218,2]
[348043383,1736273465768,-150.0,0.00012189,2]
[348043384,1736273465778,-649.3,0.00012199,2]
[348043385,1736273465788,-10111.271171,0.000122,2]
[348043386,1736273465797,-1597.45,0.000122,2]
[348043387,1736273465806,-24604.89467796,0.000122,2]
[348043388,1736273465816,-593.70268694,0.000122,2]
[348043389,1736273465826,-1038.94972042,0.000122,2]
[348043390,1736273465836,-364.35723771,0.000122,2]
[348043391,1736273465847,-3513.1337967,0.000122,2]
[348043392,1736273465856,-376.69414526,0.000122,2]
[348043393,1736273465866,-150.0,0.00012204,2]
[348043394,1736273465875,-150.0,0.00012204,2]
[348043395,1736273465884,-845.92276282,0.00012209,2]
[348043396,1736273465893,-150.0,0.00012213,2]
[348043397,1736273465903,-500.0,0.00012216,2]
[348043398,1736273465912,-2000.0,0.00012216,2]
[348043399,1736273465921,-500.0,0.00012216,2]
[348043400,1736273465930,-200.0,0.00012216,2]
[348043401,1736273465940,-150.0,0.00012217,2]
[348043402,1736273465952,-1500.0,0.00012227,2]
[348043403,1736273465961,-2866.24,0.00012231,2]
[348043404,1736273465971,-2167.62,0.00012231,2]
[348043405,1736273465980,-2167.62,0.00012231,2]
[348043406,1736273465990,-940.7,0.00012231,2]
[348043407,1736273465999,-1195.38,0.00012231,2]
[348043408,1736273466008,-1064.55,0.00012231,2]
[348043409,1736273466017,-679.41,0.00012231,2]
[348043410,1736273466026,-791.61,0.00012231,2]
[348043411,1736273466035,-1611.09,0.00012231,2]
[348043412,1736273466044,-1146.92,0.00012232,2]
[348043413,1736273466053,-702.63,0.00012232,2]
[348043414,1736273466063,-782.17,0.00012232,2]
[348043415,1736273466072,-500.0,0.00012232,2]
[348043416,1736273466082,-882.66,0.00012232,2]
[348043417,1736273466091,-6296.18,0.00012232,2]
[348043418,1736273466100,-1014.88,0.00012232,2]
[348043419,1736273466110,-696.06,0.00012232,2]
[348043420,1736273466119,-842.54,0.00012232,2]
[348043421,1736273466128,-936.2,0.00012232,2]
[348043422,1736273466137,-250.42,0.00012245,2]
[348043423,1736273466146,-39500.24635776,0.00012263,2]
[348043424,1736273466155,-513.0,0.00012273,2]
[348043425,1736273466164,-150.0,0.00012274,2]
[348043426,1736273466174,-150.0,0.00012274,2]
[348043427,1736273466183,-150.0,0.00012274,2]
[348043428,1736273466193,-72000.000001,0.0001228,2]
[348043429,1736273466205,-1500.0,0.00012282,2]
[348043430,1736273466214,-150.0,0.00012294,2]
[348043431,1736273466223,-191.81694884,0.00012296,2]
[348043432,1736273466232,-594.8664622,0.00012296,2]
[348043433,1736273466241,-11563.113593,0.00012296,2]
[348043434,1736273466250,-25643.5341752,0.00012296,2]
[348043435,1736273466259,-2000.0,0.00012299,2]
[348043436,1736273466269,-1000.0,0.00012299,2]
[348043437,1736273466278,-2000.0,0.00012299,2]
[348043438,1736273466287,-2002.2265,0.00012299,2]
[348043439,1736273466296,-3792.0,0.00012299,2]
[348043440,1736273466305,-649.3,0.00012299,2]
[348043441,1736273466314,-649.3,0.00012299,2]
[348043442,1736273466326,-649.3,0.00012299,2]
[348043443,1736273466335,-649.3,0.00012299,2]
[348043444,1736273466344,-649.3,0.00012299,2]
[348043445,1736273466354,-649.3,0.00012299,2]
[348043446,1736273466363,-649.3,0.00012299,2]
[348043447,1736273466373,-649.3,0.00012299,2]
[348043448,1736273466383,-649.3,0.00012299,2]
[348043449,1736273466392,-649.3,0.00012299,2]
[348043450,1736273466404,-649.3,0.00012299,2]
[348043451,1736273466414,-649.3,0.00012299,2]
[348043452,1736273466423,-649.38193485,0.00012299,2]
[348043453,1736273466433,-1927334.06429848,0.000123,4]
[348043454,1736273466442,-6221554.76554444,0.000123,2]
[348043455,1736273467190,-1130.87,9.316e-05,2]
[348043456,1736273467200,-500.0,9.317e-05,2]
[348043457,1736273467209,-1130.87,9.59e-05,2]
[348043458,1736273467218,-14.20000765,9.591e-05,2]
[348043459,1736273467243,-485.79999235,9.591e-05,2]
[348043460,1736273467253,-487.23000765,9.766e-05,2]
[348043461,1736273467263,-273.35999235,9.766e-05,2]
[348043462,1736273467272,-71.04000765,9.864e-05,2]
[348043463,1736273467283,-461.92,9.864e-05,2]
[348043464,1736273467308,-597.90999235,9.864e-05,2]
[348043465,1736273467317,-376.41327435,9.865e-05,2]
[348043466,1736273467332,-123.58672565,9.865e-05,2]
[348043467,1736273467341,-1130.87,0.00010138,2]
[348043468,1736273467351,-28.20579958,0.00010139,2]
[348043469,1736273467427,-471.79420042,0.00010139,2]
[348043470,1736273467437,-500.0,0.00010412,2]
[348043471,1736273467447,-1130.87,0.00010412,2]
[348043472,1736273467456,-500.0,0.00010413,2]
[348043473,1736273467465,-1358.14,0.00010414,2]
[348043474,1736273467474,-500.0,0.00010686,2]
[348043475,1736273467483,-1130.87,0.00010686,2]
[348043476,1736273467492,-500.0,0.00010687,2]
[348043477,1736273467502,-1358.14,0.00010688,2]
[348043478,1736273467511,-500.0,0.0001096,2]
[348043479,1736273467520,-500.0,0.00010961,2]
[348043480,1736273467530,-1358.14,0.00010962,2]
[348043481,1736273467539,-500.0,0.00011234,2]
[348043482,1736273467548,-1358.14,0.00011236,2]
[348043483,1736273467558,-500.0,0.00011508,2]
[348043484,1736273467568,-159.23,0.00011782,2]
[348043485,1736273467577,-30927.62126388,0.000123,2]
[348043486,1736273469491,-6401.36377757,0.000123,2]
[348043487,1736273470106,-500.0,9.316e-05,2]
[348043488,1736273470116,-186.0,0.0001004,2]
[348043489,1736273470127,-552.43582965,0.0001004,2]
[348043490,1736273470145,-22.15417035,0.0001004,2]
[348043491,1736273470154,-349.54582975,0.00010314,2]
[348043492,1736273470166,-411.04417025,0.00010314,2]
[348043493,1736273470175,-760.59,0.00010588,2]
[348043494,1736273470184,-1130.87,0.0001096,2]
[348043495,1736273470196,-1130.87,0.00011234,2]
[348043496,1736273470205,-500.0,0.00011235,2]
[348043497,1736273470214,-1130.87,0.00011508,2]
[348043498,1736273470223,-500.0,0.00011509,2]
[348043499,1736273470232,-1358.14,0.0001151,2]
[348043500,1736273470241,-1130.87,0.00011782,2]
[348043501,1736273470250,-500.0,0.00011783,2]
[348043502,1736273470259,-1358.14,0.00011784,2]
[348043503,1736273470269,-1130.87,0.00012056,2]
[348043504,1736273470279,-500.0,0.00012057,2]
[348043505,1736273470289,-1358.14,0.00012058,2]
[348043506,1736273470298,-188785.52115475,0.000123,2]
[348043507,1736273470325,-3000.0,0.0001218,2]
[348043508,1736273470335,-101059.99999998,0.000123,2]
[348043509,1736273470366,-778630.96825576,0.000123,2]
[348043510,1736273470377,-13678.53566107,0.000123,2]
[348043511,1736273470557,-343.06560753,9.316e-05,2]
[348043512,1736273470587,-156.93439247,9.316e-05,2]
[348043513,1736273470598,-500.0,9.317e-05,2]
[348043514,1736273470608,-760.59,0.00010862,2]
[348043515,1736273470618,-760.59,0.00011136,2]
[348043516,1736273470628,-760.59,0.0001141,2]
[348043517,1736273470638,-76323.08824363,0.000123,2]
[348043518,1736273470701,-760647.32610599,0.000123,2]
[348043519,1736273470717,-2000.0,0.000123,2]
[348043520,1736273470729,-349501.672066,0.000123,2]
[348043521,1736273470744,-457.00711509,0.000123,2]
[348043522,1736273946975,1054.76,8.219e-05,2]
[348043529,1736274425107,262.36,8.5e-05,2]
[348043544,1736274631826,-1000.0,8.601e-05,2]
[348043545,1736274631836,-261.13,8.639e-05,2]
[348043546,1736274631845,-250.0,8.734e-05,2]
[348043547,1736274631855,-1500.0,8.765e-05,2]
[348043548,1736274631869,-250.0,8.817e-05,2]
[348043549,1736274631879,-150.0,9e-05,2]
[348043550,1736274631889,-150.0,9e-05,2]
[348043551,1736274631899,-150.0,9e-05,2]
[348043552,1736274631909,-166.95,9.01e-05,2]
[348043553,1736274631918,-500.0,9.043e-05,2]
[348043554,1736274631928,-500.0,9.043e-05,2]
[348043555,1736274631938,-1876.04,9.043e-05,2]
[348043556,1736274631947,-500.0,9.043e-05,2]
[348043557,1736274631956,-801.08,9.043e-05,2]
[348043558,1736274631966,-10028.33745491,9.044e-05,2]
[348043559,1736274631975,-654.7,9.044e-05,2]
[348043560,1736274631985,-1536.01,9.044e-05,2]
[348043561,1736274631995,-898.73,9.044e-05,2]
[348043562,1736274632004,-150.0,9.091e-05,2]
[348043563,1736274632013,-150.0,9.182e-05,2]
[348043564,1736274632023,-4379.6962,9.217e-05,2]
[348043565,1736274632033,-1000.0,9.217e-05,2]
[348043566,1736274632043,-928.09,9.217e-05,2]
[348043567,1736274632053,-522.48,9.217e-05,2]
[348043568,1736274632062,-1802.1,9.217e-05,2]
[348043569,1736274632072,-1330.59,9.217e-05,2]
[348043570,1736274632081,-150.0,9.25e-05,2]
[348043571,1736274632090,-150.0,9.273e-05,2]
[348043572,1736274632101,-581.74,9.316e-05,2]
[348043573,1736274632120,-500.0,9.316e-05,2]
[348043574,1736274632134,-500.0,9.316e-05,2]
[348043575,1736274632143,-500.0,9.316e-05,2]
[348043576,1736274632152,-500.0,9.316e-05,2]
[348043577,1736274632161,-500.0,9.316e-05,2]
[348043578,1736274632170,-500.0,9.316e-05,2]
[348043579,1736274632178,-500.0,9.316e-05,2]
[348043580,1736274632187,-500.0,9.316e-05,2]
[348043581,1736274632196,-540.7,9.316e-05,2]
[348043582,1736274632205,-500.0,9.316e-05,2]
[348043583,1736274632214,-500.0,9.316e-05,2]
[348043584,1736274632223,-500.0,9.316e-05,2]
[348043585,1736274632232,-500.0,9.316e-05,2]
[348043586,1736274632241,-500.0,9.316e-05,2]
[348043587,1736274632251,-500.0,9.316e-05,2]
[348043588,1736274632259,-500.0,9.316e-05,2]
[348043589,1736274632270,-500.0,9.316e-05,2]
[348043590,1736274632279,-500.0,9.316e-05,2]
[348043591,1736274632288,-500.0,9.316e-05,2]
[348043592,1736274632297,-500.0,9.316e-05,2]
[348043593,1736274632306,-500.0,9.316e-05,2]
[348043594,1736274632315,-500.0,9.316e-05,2]
[348043595,1736274632324,-500.0,9.316e-05,2]
[348043596,1736274632333,-500.0,9.316e-05,2]
[348043597,1736274632342,-500.0,9.316e-05,2]